{"text_format":"1","workbook":"xlsx","n_sheets":1,"sheets":["Инвестиционная деятельность"],"not_rendered":{"charts":0,"images":0,"macros":1,"external_links":0,"defined_names":6,"comments":0,"pivot_tables":0},"unopened":[],"bounds":{"document_bytes":16777216,"sheet_cells":100000,"rows_first":2000,"rows_last":500,"rows_between":2000,"halvings":0,"cell_chars":16384,"cell_head_chars":4096},"cells_cut":0,"cells_raw":0,"read":"whole","date_system":"1900"}

{"sheet":"Инвестиционная деятельность","index":0,"n_rows":8,"n_cols":97,"rows_kept":8,"cut":false,"hidden":false,"merged":[[3,44,5,44],[1,0,1,10],[3,6,5,6],[3,7,5,7],[3,0,5,0],[3,1,5,1],[3,2,3,4],[3,5,5,5],[3,8,5,8],[3,9,5,9],[3,10,5,10],[4,35,5,35],[4,36,4,37],[3,25,5,25],[3,26,5,26],[3,17,3,24],[3,27,5,27],[3,28,5,28],[4,34,5,34],[4,38,5,38],[3,29,5,29],[3,30,3,33],[4,30,5,30],[4,31,5,31],[4,32,5,32],[4,33,5,33],[3,11,5,11],[3,12,5,12],[3,13,5,13],[3,14,5,14],[3,15,4,16],[4,53,5,53],[4,49,5,49],[4,50,5,50],[4,48,5,48],[4,41,5,41],[4,42,5,42],[4,43,5,43],[4,46,5,46],[4,47,5,47],[3,45,5,45],[3,46,3,54],[4,51,5,51],[4,52,5,52],[4,54,5,54],[3,34,3,43],[4,39,4,40],[3,64,5,64],[3,63,5,63],[3,55,5,55],[3,58,5,58],[3,59,5,59],[3,60,5,60],[3,61,5,61],[3,62,5,62],[3,56,5,56],[3,57,5,57],[3,65,5,65],[3,66,5,66],[3,67,5,67],[3,68,5,68],[3,69,5,69],[3,91,5,91],[3,92,5,92],[3,93,5,93],[3,94,5,94],[3,83,5,83],[3,84,5,84],[3,88,5,88],[3,90,5,90],[3,96,5,96],[4,2,5,2],[4,3,5,3],[4,4,5,4],[4,17,4,18],[4,19,4,20],[4,21,4,22],[4,23,4,24],[3,89,5,89],[3,95,5,95],[3,80,5,80],[3,81,5,81],[3,82,5,82],[3,85,5,85],[3,86,5,86],[3,87,5,87],[3,70,5,70],[3,76,4,77],[3,78,5,78],[3,79,5,79],[3,71,5,71],[3,72,5,72],[3,73,5,73],[3,74,5,74],[3,75,5,75]]}
[]
["План закупки ПАО \"Россети Московский регион\" на 2026 по инвестиционной деятельности"]
[]
["Код вида деятельности","Номер закупки ","Подразделение/предприятие-потребитель продукции",null,null,"Вид закупаемой продукции","Номер лота","Наименование лота","Код по ОКВЭД 2","Код по ОКПД 2","Закупка только среди МСП (да/нет/искл)","Признак закупки инновационной и высокотехнологичной продукции (Да/Нет)","Источник финансирования","Аванс (да/нет), %","Документ, на основании которого определена планируемая цена закупки","Планируемая начальная (предельная) цена лота по извещению/уведомлению, тыс. руб. ",null,"Объёмы оплаты долгосрочного договора по годам, тыс. рублей",null,null,null,null,null,null,null,"Планируемый способ закупки","Организатор закупки","Вид закупки (электронная/неэлектронная)","Планируемая дата размещения извещения о начале закупочной процедуры/заключения договора у ЕП (ЗПП)\n(чч.мм.гггг)","Планируемая дата подведения итогов по закупочной процедуре/заключения договора у ЕП (ЗПП)\n(чч.мм.гггг)","Сведения о закупке у ЕП",null,null,null,"Условия договора",null,null,null,null,null,null,null,null,null,"Год под обеспечение потребности которого планируется данная закупка","Стоимость ранее заключенных контрактов, т.р. с НДС","Данные из утвержденной инвестиционной программы",null,null,null,null,null,null,null,null,"технологическое присоединение (Да/Нет), \nдоп услуги, \nТМЦ, \nрамки","Объем финансового обеспечения закупки за счет субсидии, предоставляемой в целях реализации национальных и федеральных проектов, а также комплексного плана модернизации и расширения магистральной инфраструктуры (тыс.руб. с НДС)","Код целевой статьи расходов, код вида расходов","Примечание","Информация поступила от","Дата поступления ТЗ","На ЦКК","Дата протокола ЦКК","Статус лота:\nПроведён-1\nВ работе-2, с\nНет ТЗ - 0\nАннулирован - а","план/\nвнеплан","Дата объявления","Дата вскрытия","№ ЭТП","Способ закупки факт\n(замечания после ЦКК)","Наименования участников, подавших заявки/предложения (оферты)","Цены  заявок/предложений   (оферт).  тыс. руб. (без НДС)\nС НДС","Отклонены от переторжки","Допущены к переторжке","Цены участников после переторжки","Количество переторжек","Наименование победителя ","Цена победителя, тыс. руб.",null,"Эк.Эфф\nтыс. руб. без НДС","Снижение \n%","НДС\n%","Номер итогового протокола","Дата подведения итогов конкурентной процедуры (дата протокола)","номер договора","дата заключения договора"," Стоимость по договору, тыс. руб. (с НДС)","сумма оплаты в 2022 году, тыс руб. (без НДС)","сумма оплаты в 2022 году, тыс руб. (с НДС)","сумма оплаты в 2023-2025 гг. тыс руб. (без НДС)","сумма оплаты в 2023-2025 гг. тыс руб. (с НДС)","ИНН","КПП","квартал","Принадлежность победителя закупочной процедуры к субьекту малого предпринимательства (нет. да - 1ип. 1ми. 1м. 1с)","Номер извещения в ЕИС","Лот относится к категории \"Цифровая трансформация 2030\"\nда/нет","Лот относится к категории \"Программа Цифровая трансформация\"\nда/нет"]
[null,null,"Юридическое лицо","Филиал/подразделение","Функциональный блок",null,null,null,null,null,null,null,null,null,null,null,null,"2026г., тыс.руб",null,"2027г., тыс.руб",null,"2028г., тыс.руб",null,"2029г. И ДАЛЕЕ, тыс.руб",null,null,null,null,null,null,"Основание для проведения закупки у ЕП (пункт ЕСЗ ПАО \"Россети\")","Наименование контрагента","ИНН","КПП","Предмет договора","Минимально необходимые требования, предъявляемые к закупаемым товарам (работам. услугам)","Единица измерения",null,"Сведения о количестве (объеме) - количество единиц измерения","Регион поставки товаров (выполнения работ, оказания услуг)",null,"Плановая дата заключения договора (чч.мм.гггг)","Планируемая дата начала поставки товаров, выполнения работ. услуг (чч.мм.гггг)","Планируемая дата окончания поставки товаров, выполнения работ. услуг (чч.мм.гггг)",null,null,"статус ИПР","наименование инвестиционного проекта (группы инвестиционных проектов)","идентификатор инвестиционного проекта\n(Код объекта в инвестиционной программе)","Проектно-сметная документация \nутверждена/не утверждена","год начала  реализации инвестиционного проекта\n(ГГГГ)","год окончания реализации инвестиционного проекта\n(ГГГГ)","оценка полной стоимости инвестиционного проекта в прогнозных ценах соответствующих лет, с учетом капитализации процентов, \nтыс. руб. (с НДС)","оценка полной стоимости инвестиционного проекта в прогнозных ценах соответствующих лет, без учета  капитализации процентов, \nтыс. руб. (с НДС)","остаток финансирования капитальных вложений в прогнозных ценах (на момент начала года плана закупки), тыс. руб. (с НДС)\nна 01.01.2021"]
[null,null,null,null,null,null,null,null,null,null,null,null,null,null,null,"(без учета НДС)"," (с учетом НДС)","(без учета НДС)"," (с учетом НДС)","(без учета НДС)"," (с учетом НДС)","(без учета НДС)"," (с учетом НДС)","(без учета НДС)"," (с учетом НДС)",null,null,null,null,null,null,null,null,null,null,null,"Код по ОКЕИ","наименование",null,"Код по ОКАТО","наименование",null,null,null,null,null,null,null,null,null,null,null,null,null,null,null,null,null,null,null,null,null,null,null,null,null,null,null,null,null,null,null,null,null,null,null,"без НДС","с НДС"]
[1,{"$f":"A7+1","v":2},3,4,5,6,7,8,9,10,11,12,13,14,15,16,17,18,19,20,21,22,23,24,25,26,27,28,29,30,31,32,33,34,35,36,37,38,39,40,41,42,43,44,45,46,47,48,49,50,51,52,53,53.1,54,55,{"$f":"BD7+1","v":56},{"$f":"BE7+1","v":57},58,59,{"$f":"BH7+1","v":60},61,62,63,{"$f":"BL7+1","v":64},65,66,67,68,69,70,71,72,73,74,75,76,77,78,79,80,81,82,83,84,85,86,87,88,89,90,91,92,93,94,{"$f":"CQ7+1","v":95},{"$f":"CR7+1","v":96}]
[1,"081-0027105","ПАО \"Россети Московский регион\"","Кр.РЭС Сектор по льготным договорам ТП/Красногорский район электрических сетей/РЭСы/Северные электрические сети/ПАО \"Россети Московский регион\"","Подразделение по капитальному строительству","СМР","081-0027105 00","Закупка способом сравнения цен","71.1","71.12.13.000","ДА","НЕТ"," Тех. присоединение","НЕТ","Приказ ИПР",109.02,133.0044,109.02,133.0044,null,null,null,null,null,null,"Сравнение цен","Северные электрические сети","Электронная","08.06.2026","14.06.2026",null,null,null,null,"Закупка способом сравнения цен","в соответствии с техническим заданием",796,"Штука",1,"46223000000","Красногорский район","25.06.2026","25.06.2026","31.07.2026",2026,0,"Приказ 1893 от 02.06.2026","Строительство КЛ-0,4 кВ от В ТП №6719, ПС №64 \"Барвиха\", ВРЩ-0,4 кВ, в т.ч. ПИР, МО, Красногорский р-н, д. Глухово, тер. Горки-6, д.28","I-331545","Не утверждена",2026,2026,363.02089000000001,0,0,"Тех.присоединение, Потребители от 15 кВт до 150 кВт  включительно",null,null,null,"Любовцова Марина Николаевна","04.06.2026",null,null,null,"внеплан ",null,null,null,null,null,null,null,null,null,null,null,0,0,0,0,0,null,null,null,null,null,null,null,null,null,null,null,0,"НЕТ",null,"НЕТ","НЕТ"]